Workbook

Sheet Cover
B4: Die Welt der VBA-Objekte
B5: 3. Auflage
B8: Name | C8: Word-Ausgabe
B11: Inhalt | C11: Excel nutzt die Word-Druckfunktionen
C12: zur Ausgabe von mehreren markierten Arbeitsblättern
C13: auf einem Druckblatt
B22: Version | C22: 1.0
B23: Autor | C23: Harald Nahrstedt
B24: Datum | C24: 2025-03-01
B27: Springer Vieweg Verlag

Sheet Jan
A1: Produktionsmengen
A2: Januar
A4: Fertigungslinien | B4: Produkte | C4: Jan | D4: Feb | E4: Mrz | F4: Umsatz
A5: A | B5: 1 | C5: 445 | D5: 634 | E5: 745 | F5: =SUM(C5:E5) -> 1824
B6: 2 | C6: 209 | D6: 202 | E6: 234 | F6: 645
B7: 3 | C7: 254 | D7: 147 | E7: 278 | F7: 679
A8: B | B8: 1 | C8: 88 | D8: 79 | E8: 103 | F8: 270
B9: 2 | C9: 49 | D9: 45 | E9: 55 | F9: 149
B10: 3 | C10: 133 | D10: 301 | E10: 292 | F10: 726
B11: 4 | C11: 61 | D11: 77 | E11: 79 | F11: 217
A12: C | B12: 1 | C12: 175 | D12: 189 | E12: 211 | F12: 575
B13: 2 | C13: 199 | D13: 243 | E13: 224 | F13: 666
A14: Gesamt | C14: =SUM(C5:C13) -> 1613 | D14: =SUM(D5:D13) -> 1917 | E14: =SUM(E5:E13) -> 2221 | F14: 5751

Sheet Feb
A1: Produktionsmengen
A2: Februar
A4: Fertigungslinien | B4: Produkte | C4: Apr | D4: Mai | E4: Jun | F4: Umsatz
A5: A | B5: 1 | C5: 462 | D5: 636 | E5: 747 | F5: =SUM(C5:E5) -> 1845
B6: 2 | C6: 233 | D6: 222 | E6: 245 | F6: 700
B7: 3 | C7: 278 | D7: 152 | E7: 289 | F7: 719
A8: B | B8: 1 | C8: 95 | D8: 91 | E8: 145 | F8: 331
B9: 2 | C9: 56 | D9: 47 | E9: 67 | F9: 170
B10: 3 | C10: 244 | D10: 289 | E10: 293 | F10: 826
B11: 4 | C11: 67 | D11: 67 | E11: 84 | F11: 218
A12: C | B12: 1 | C12: 177 | D12: 195 | E12: 192 | F12: 564
B13: 2 | C13: 202 | D13: 256 | E13: 228 | F13: 686
A14: Gesamt | C14: =SUM(C5:C13) -> 1814 | D14: =SUM(D5:D13) -> 1955 | E14: =SUM(E5:E13) -> 2290 | F14: 6059

Sheet Mär
A1: Produktionsmengen
A2: März
A4: Fertigungslinien | B4: Produkte | C4: Jul | D4: Aug | E4: Sep | F4: Umsatz
A5: A | B5: 1 | C5: 444 | D5: 612 | E5: 711 | F5: =SUM(C5:E5) -> 1767
B6: 2 | C6: 209 | D6: 200 | E6: 222 | F6: 631
B7: 3 | C7: 245 | D7: 167 | E7: 256 | F7: 668
A8: B | B8: 1 | C8: 89 | D8: 79 | E8: 140 | F8: 308
B9: 2 | C9: 44 | D9: 44 | E9: 60 | F9: 148
B10: 3 | C10: 133 | D10: 199 | E10: 280 | F10: 612
B11: 4 | C11: 60 | D11: 78 | E11: 78 | F11: 216
A12: C | B12: 1 | C12: 177 | D12: 156 | E12: 211 | F12: 544
B13: 2 | C13: 199 | D13: 255 | E13: 234 | F13: 688
A14: Gesamt | C14: =SUM(C5:C13) -> 1600 | D14: =SUM(D5:D13) -> 1790 | E14: =SUM(E5:E13) -> 2192 | F14: 5582

Sheet Apr
A1: Produktionsmengen
A2: April
A4: Fertigungslinien | B4: Produkte | C4: Okt | D4: Nov | E4: Dez | F4: Umsatz
A5: A | B5: 1 | C5: 405 | D5: 655 | E5: 733 | F5: =SUM(C5:E5) -> 1793
B6: 2 | C6: 209 | D6: 244 | E6: 256 | F6: =SUM(C6:E6) -> 709
B7: 3 | C7: 277 | D7: 178 | E7: 290 | F7: 745
A8: B | B8: 1 | C8: 98 | D8: 79 | E8: 110 | F8: 287
B9: 2 | C9: 66 | D9: 67 | E9: 66 | F9: 199
B10: 3 | C10: 133 | D10: 333 | E10: 303 | F10: 769
B11: 4 | C11: 78 | D11: 89 | E11: 84 | F11: 251
A12: C | B12: 1 | C12: 189 | D12: 199 | E12: 211 | F12: 599
B13: 2 | C13: 206 | D13: 267 | E13: 233 | F13: 706
A14: Gesamt | C14: =SUM(C5:C13) -> 1661 | D14: =SUM(D5:D13) -> 2111 | E14: =SUM(E5:E13) -> 2286 | F14: 6058

Sheet Mai
A1: Produktionsmengen
A2: Mai
A4: Fertigungslinien | B4: Produkte | C4: Jan | D4: Feb | E4: Mrz | F4: Umsatz
A5: A | B5: 1 | C5: 445 | D5: 634 | E5: 745 | F5: =SUM(C5:E5) -> 1824
B6: 2 | C6: 209 | D6: 202 | E6: 234 | F6: 645
B7: 3 | C7: 254 | D7: 147 | E7: 278 | F7: 679
A8: B | B8: 1 | C8: 88 | D8: 79 | E8: 103 | F8: 270
B9: 2 | C9: 49 | D9: 45 | E9: 55 | F9: 149
B10: 3 | C10: 133 | D10: 301 | E10: 292 | F10: 726
B11: 4 | C11: 61 | D11: 77 | E11: 79 | F11: 217
A12: C | B12: 1 | C12: 175 | D12: 189 | E12: 211 | F12: 575
B13: 2 | C13: 199 | D13: 243 | E13: 224 | F13: 666
A14: Gesamt | C14: =SUM(C5:C13) -> 1613 | D14: =SUM(D5:D13) -> 1917 | E14: =SUM(E5:E13) -> 2221 | F14: 5751

Sheet Jun
A1: Produktionsmengen
A2: Juni
A4: Fertigungslinien | B4: Produkte | C4: Apr | D4: Mai | E4: Jun | F4: Umsatz
A5: A | B5: 1 | C5: 462 | D5: 636 | E5: 747 | F5: =SUM(C5:E5) -> 1845
B6: 2 | C6: 233 | D6: 233 | E6: 245 | F6: 711
B7: 3 | C7: 278 | D7: 152 | E7: 289 | F7: 719
A8: B | B8: 1 | C8: 99 | D8: 91 | E8: 145 | F8: 335
B9: 2 | C9: 56 | D9: 56 | E9: 67 | F9: 179
B10: 3 | C10: 244 | D10: 289 | E10: 293 | F10: 826
B11: 4 | C11: 87 | D11: 67 | E11: 84 | F11: 238
A12: C | B12: 1 | C12: 177 | D12: 195 | E12: 192 | F12: 564
B13: 2 | C13: 202 | D13: 256 | E13: 228 | F13: 686
A14: Gesamt | C14: =SUM(C5:C13) -> 1838 | D14: =SUM(D5:D13) -> 1975 | E14: =SUM(E5:E13) -> 2290 | F14: 6103

Sheet Jul
A1: Produktionsmengen
A2: Juli
A4: Fertigungslinien | B4: Produkte | C4: Jul | D4: Aug | E4: Sep | F4: Umsatz
A5: A | B5: 1 | C5: 444 | D5: 612 | E5: 711 | F5: =SUM(C5:E5) -> 1767
B6: 2 | C6: 209 | D6: 200 | E6: 222 | F6: 631
B7: 3 | C7: 245 | D7: 167 | E7: 256 | F7: 668
A8: B | B8: 1 | C8: 89 | D8: 79 | E8: 140 | F8: 308
B9: 2 | C9: 66 | D9: 44 | E9: 60 | F9: 170
B10: 3 | C10: 133 | D10: 199 | E10: 280 | F10: 612
B11: 4 | C11: 60 | D11: 78 | E11: 90 | F11: 228
A12: C | B12: 1 | C12: 180 | D12: 156 | E12: 211 | F12: 547
B13: 2 | C13: 199 | D13: 255 | E13: 234 | F13: 688
A14: Gesamt | C14: =SUM(C5:C13) -> 1625 | D14: =SUM(D5:D13) -> 1790 | E14: =SUM(E5:E13) -> 2204 | F14: 5619

Sheet Aug
A1: Produktionsmengen
A2: August
A4: Fertigungslinien | B4: Produkte | C4: Okt | D4: Nov | E4: Dez | F4: Umsatz
A5: A | B5: 1 | C5: 405 | D5: 655 | E5: 733 | F5: =SUM(C5:E5) -> 1793
B6: 2 | C6: 209 | D6: 244 | E6: 256 | F6: =SUM(C6:E6) -> 709
B7: 3 | C7: 277 | D7: 45 | E7: 290 | F7: 612
A8: B | B8: 1 | C8: 98 | D8: 79 | E8: 110 | F8: 287
B9: 2 | C9: 77 | D9: 67 | E9: 66 | F9: 210
B10: 3 | C10: 133 | D10: 333 | E10: 303 | F10: 769
B11: 4 | C11: 78 | D11: 89 | E11: 88 | F11: 255
A12: C | B12: 1 | C12: 189 | D12: 199 | E12: 211 | F12: 599
B13: 2 | C13: 206 | D13: 267 | E13: 233 | F13: 706
A14: Gesamt | C14: =SUM(C5:C13) -> 1672 | D14: =SUM(D5:D13) -> 1978 | E14: =SUM(E5:E13) -> 2290 | F14: 5940

Sheet Sep
A1: Produktionsmengen
A2: September
A4: Fertigungslinien | B4: Produkte | C4: Jan | D4: Feb | E4: Mrz | F4: Umsatz
A5: A | B5: 1 | C5: 445 | D5: 634 | E5: 745 | F5: =SUM(C5:E5) -> 1824
B6: 2 | C6: 211 | D6: 202 | E6: 234 | F6: 647
B7: 3 | C7: 200 | D7: 147 | E7: 278 | F7: 625
A8: B | B8: 1 | C8: 88 | D8: 82 | E8: 103 | F8: 273
B9: 2 | C9: 49 | D9: 45 | E9: 55 | F9: 149
B10: 3 | C10: 213 | D10: 290 | E10: 292 | F10: 795
B11: 4 | C11: 45 | D11: 77 | E11: 79 | F11: 201
A12: C | B12: 1 | C12: 175 | D12: 189 | E12: 181 | F12: 545
B13: 2 | C13: 199 | D13: 243 | E13: 210 | F13: 652
A14: Gesamt | C14: =SUM(C5:C13) -> 1625 | D14: =SUM(D5:D13) -> 1909 | E14: =SUM(E5:E13) -> 2177 | F14: 5711

Sheet Okt
A1: Produktionsmengen
A2: Oktober
A4: Fertigungslinien | B4: Produkte | C4: Apr | D4: Mai | E4: Jun | F4: Umsatz
A5: A | B5: 1 | C5: 462 | D5: 636 | E5: 747 | F5: =SUM(C5:E5) -> 1845
B6: 2 | C6: 123 | D6: 222 | E6: 245 | F6: 590
B7: 3 | C7: 278 | D7: 152 | E7: 289 | F7: 719
A8: B | B8: 1 | C8: 95 | D8: 91 | E8: 112 | F8: 298
B9: 2 | C9: 56 | D9: 47 | E9: 67 | F9: 170
B10: 3 | C10: 244 | D10: 289 | E10: 293 | F10: 826
B11: 4 | C11: 67 | D11: 67 | E11: 84 | F11: 218
A12: C | B12: 1 | C12: 144 | D12: 195 | E12: 155 | F12: 494
B13: 2 | C13: 202 | D13: 256 | E13: 228 | F13: 686
A14: Gesamt | C14: =SUM(C5:C13) -> 1671 | D14: =SUM(D5:D13) -> 1955 | E14: =SUM(E5:E13) -> 2220 | F14: 5846

Sheet Nov
A1: Produktionsmengen
A2: November
A4: Fertigungslinien | B4: Produkte | C4: Jul | D4: Aug | E4: Sep | F4: Umsatz
A5: A | B5: 1 | C5: 444 | D5: 612 | E5: 711 | F5: =SUM(C5:E5) -> 1767
B6: 2 | C6: 208 | D6: 200 | E6: 222 | F6: 630
B7: 3 | C7: 245 | D7: 167 | E7: 256 | F7: 668
A8: B | B8: 1 | C8: 78 | D8: 81 | E8: 140 | F8: 299
B9: 2 | C9: 44 | D9: 67 | E9: 98 | F9: 209
B10: 3 | C10: 207 | D10: 199 | E10: 280 | F10: 686
B11: 4 | C11: 112 | D11: 78 | E11: 78 | F11: 268
A12: C | B12: 1 | C12: 177 | D12: 156 | E12: 176 | F12: 509
B13: 2 | C13: 199 | D13: 255 | E13: 234 | F13: 688
A14: Gesamt | C14: =SUM(C5:C13) -> 1714 | D14: =SUM(D5:D13) -> 1815 | E14: =SUM(E5:E13) -> 2195 | F14: 5724

Sheet Dez
A1: Produktionsmengen
A2: Dezember
A4: Fertigungslinien | B4: Produkte | C4: Okt | D4: Nov | E4: Dez | F4: Umsatz
A5: A | B5: 1 | C5: 405 | D5: 655 | E5: 733 | F5: =SUM(C5:E5) -> 1793
B6: 2 | C6: 233 | D6: 244 | E6: 256 | F6: =SUM(C6:E6) -> 733
B7: 3 | C7: 277 | D7: 178 | E7: 290 | F7: 745
A8: B | B8: 1 | C8: 113 | D8: 94 | E8: 110 | F8: 317
B9: 2 | C9: 88 | D9: 89 | E9: 66 | F9: 243
B10: 3 | C10: 246 | D10: 333 | E10: 303 | F10: 882
B11: 4 | C11: 78 | D11: 67 | E11: 99 | F11: 244
A12: C | B12: 1 | C12: 189 | D12: 199 | E12: 191 | F12: 579
B13: 2 | C13: 206 | D13: 267 | E13: 233 | F13: 706
A14: Gesamt | C14: =SUM(C5:C13) -> 1835 | D14: =SUM(D5:D13) -> 2126 | E14: =SUM(E5:E13) -> 2281 | F14: 6242
